bitfinex-derivatives/quotes_BTCF0:USTF0_20230101
["timestamp","ask_amount","ask_price","bid_price","bid_amount"]
[1672612895990,0.19979422,16612.0,16611.0,0.139]
[1672612896188,0.19979422,16612.0,16611.0,0.4397]
[1672612899861,0.19979422,16612.0,16611.0,0.139]
[1672612900067,0.19979422,16612.0,16611.0,0.4397]
[1672612905861,0.19979422,16612.0,16611.0,0.139]
[1672612906072,0.19979422,16612.0,16611.0,0.4397]
[1672612908071,0.19979422,16612.0,16611.0,0.139]
[1672612908394,0.19979422,16612.0,16611.0,0.4397]
[1672612922782,0.19979422,16612.0,16611.0,0.139]
[1672612922999,0.19979422,16612.0,16611.0,0.4397]
[1672612924788,0.19979422,16612.0,16611.0,0.139]
[1672612924997,0.19979422,16612.0,16611.0,0.4397]
[1672612926686,0.19979422,16612.0,16611.0,0.139]
[1672612926893,0.19979422,16612.0,16611.0,0.4397]
[1672612928470,0.19979422,16612.0,16611.0,0.43953952]
[1672612942363,0.19956364,16612.0,16611.0,0.43953952]
[1672612945190,0.19956364,16612.0,16611.0,0.13883952]
[1672612945406,0.19956364,16612.0,16611.0,0.43953952]
[1672612946029,0.19956364,16612.0,16611.0,0.13883952]
[1672612946245,0.19956364,16612.0,16611.0,0.43953952]
[1672612947084,0.19956364,16612.0,16611.0,0.13883952]
[1672612947294,0.19956364,16612.0,16611.0,0.43953952]
[1672612947926,0.19956364,16612.0,16611.0,0.13883952]
[1672612948140,0.19956364,16612.0,16611.0,0.43953952]
[1672612957598,0.19956364,16612.0,16611.0,0.13883952]
[1672612958012,0.19956364,16612.0,16611.0,0.43953952]
[1672612962536,0.19956364,16612.0,16611.0,0.13883952]
[1672612962744,0.19956364,16612.0,16611.0,0.43953952]
[1672612963164,0.19956364,16612.0,16611.0,0.13883952]
[1672612963380,0.19956364,16612.0,16611.0,0.43953952]
[1672612965795,0.19956364,16612.0,16611.0,0.13883952]
[1672612966009,0.19956364,16612.0,16611.0,0.43953952]
[1672612966534,0.19956364,16612.0,16611.0,0.13883952]
[1672612966848,0.19956364,16612.0,16611.0,0.43953952]
[1672612967681,0.19956364,16612.0,16611.0,0.13883952]
[1672612968106,0.19956364,16612.0,16611.0,0.43953952]
[1672612969360,0.19956364,16612.0,16611.0,0.13883952]
[1672612969778,0.19956364,16612.0,16611.0,0.43953952]
[1672612971778,0.19956364,16612.0,16611.0,0.13883952]
[1672612972095,0.19956364,16612.0,16611.0,0.43953952]
[1672612973782,0.19956364,16612.0,16611.0,0.13883952]
[1672612973982,0.19956364,16612.0,16611.0,0.43953952]
[1672612976500,0.19956364,16612.0,16611.0,0.13883952]
[1672612976717,0.19956364,16612.0,16611.0,0.43953952]
[1672612978925,0.19956364,16612.0,16611.0,0.13883952]
[1672612979245,0.19956364,16612.0,16611.0,0.43953952]
[1672612980392,0.19956364,16612.0,16611.0,0.13883952]
[1672612980607,0.19956364,16612.0,16611.0,0.43953952]
[1672612981971,0.19956364,16612.0,16611.0,0.13883952]
[1672612982181,0.19956364,16612.0,16611.0,0.43953952]
[1672612982816,0.19956364,16612.0,16611.0,0.13883952]
[1672612983133,0.19956364,16612.0,16611.0,0.43953952]
[1672612983547,0.19956364,16612.0,16611.0,0.13883952]
[1672612983762,0.19956364,16612.0,16611.0,0.43953952]
[1672612985864,0.19956364,16612.0,16611.0,0.13883952]
[1672612986074,0.19956364,16612.0,16611.0,0.43953952]
[1672612990071,0.19956364,16612.0,16611.0,0.13883952]
[1672612990494,0.19956364,16612.0,16611.0,0.43953952]
[1672612990909,0.19956364,16612.0,16611.0,0.13883952]
[1672612991225,0.19956364,16612.0,16611.0,0.43932022]
[1672612992898,0.19956364,16612.0,16611.0,0.13862022]
[1672612993121,0.19956364,16612.0,16611.0,0.43932022]
[1672612994080,0.19956364,16612.0,16611.0,0.13862022]
[1672612994271,0.19956364,16612.0,16611.0,0.43932022]
[1672613007006,0.19956364,16612.0,16611.0,0.13862022]
[1672613007210,0.19956364,16612.0,16611.0,0.43932022]
[1672613008051,0.19956364,16612.0,16611.0,0.13862022]
[1672613008262,0.19956364,16612.0,16611.0,0.43932022]
[1672613008468,0.19956364,16612.0,16611.0,0.13862022]
[1672613008683,0.19956364,16612.0,16611.0,0.43932022]
[1672613018452,0.19956364,16612.0,16611.0,0.13862022]
[1672613018663,0.19956364,16612.0,16611.0,0.43932022]
[1672613019503,0.19956364,16612.0,16611.0,0.13862022]
[1672613019706,0.19956364,16612.0,16611.0,0.43932022]
[1672613035055,0.19956364,16612.0,16611.0,0.13862022]
[1672613035270,0.19956364,16612.0,16611.0,0.43932022]
[1672613038211,0.19956364,16612.0,16611.0,0.13862022]
[1672613038423,0.19956364,16612.0,16611.0,0.43932022]
[1672613039680,0.19956364,16612.0,16611.0,0.13862022]
[1672613039897,0.19956364,16612.0,16611.0,0.43932022]
[1672613040515,0.19956364,16612.0,16611.0,0.13862022]
[1672613040838,0.19956364,16612.0,16611.0,0.43932022]
[1672613042939,0.19956364,16612.0,16611.0,0.13862022]
[1672613043153,0.19956364,16612.0,16611.0,0.43932022]
[1672613043782,0.89912484,16613.0,16611.0,0.43932022]
[1672613043992,0.89912484,16613.0,16612.0,0.2]
[1672613044835,0.89912484,16613.0,16612.0,0.19989903]
[1672613045258,0.89912484,16613.0,16612.0,0.33889903]
[1672613047575,0.89912484,16613.0,16612.0,0.63959903]
[1672613048624,0.89912484,16613.0,16612.0,0.33889903]
[1672613048829,0.89912484,16613.0,16612.0,0.63959903]
[1672613050092,0.69912484,16613.0,16612.0,0.63959903]
[1672613050304,0.69912484,16613.0,16612.0,0.4397]
[1672613057041,0.69912484,16613.0,16612.0,0.139]
[1672613057360,0.69912484,16613.0,16612.0,0.4397]
[1672613066079,0.69912484,16613.0,16612.0,0.139]
[1672613066290,0.69912484,16613.0,16612.0,0.4397]
[1672613068914,0.69912484,16613.0,16612.0,0.139]
[1672613069117,0.69912484,16613.0,16612.0,0.4397]
[1672613076172,0.69912484,16613.0,16612.0,0.139]
[1672613076384,0.69912484,16613.0,16612.0,0.4397]
[1672613076805,0.69912484,16613.0,16612.0,0.139]
[1672613077227,0.69912484,16613.0,16612.0,0.4397]
[1672613088059,0.69912484,16613.0,16612.0,0.139]
[1672613088260,0.69912484,16613.0,16612.0,0.4397]
[1672613089107,0.69912484,16613.0,16612.0,0.139]
[1672613089527,0.69912484,16613.0,16612.0,0.4397]
[1672613090067,0.69912484,16613.0,16612.0,0.43950656]
[1672613094582,0.69912484,16613.0,16612.0,0.13880656]
[1672613094791,0.69912484,16613.0,16612.0,0.43950656]
[1672613106767,0.69912484,16613.0,16612.0,0.13880656]
[1672613107087,0.69912484,16613.0,16612.0,0.43950656]
[1672613117921,0.69912484,16613.0,16612.0,0.13880656]
[1672613118131,0.69912484,16613.0,16612.0,0.43950656]
[1672613131906,0.69912484,16613.0,16612.0,0.13880656]
[1672613132102,0.69912484,16613.0,16612.0,0.43950656]
[1672613144730,0.69912484,16613.0,16612.0,0.43938154]
[1672613146090,0.69912484,16613.0,16612.0,0.13868154]
[1672613146297,0.69912484,16613.0,16612.0,0.43938154]
[1672613149458,0.69912484,16613.0,16612.0,0.13868154]
[1672613149664,0.69912484,16613.0,16612.0,0.43938154]
[1672613152503,0.69912484,16613.0,16612.0,0.13868154]
[1672613152920,0.69912484,16613.0,16612.0,0.43938154]
[1672613153337,0.69912484,16613.0,16612.0,0.13868154]
[1672613153764,0.69912484,16613.0,16612.0,0.43938154]
[1672613174787,0.69912484,16613.0,16612.0,0.13868154]
[1672613175004,0.69912484,16613.0,16612.0,0.43938154]
[1672613175416,0.69912484,16613.0,16612.0,0.13868154]
[1672613175628,0.69912484,16613.0,16612.0,0.43938154]
[1672613175843,0.69912484,16613.0,16612.0,0.13868154]
[1672613176060,0.69912484,16613.0,16612.0,0.43938154]
[1672613185406,0.69912484,16613.0,16612.0,0.13868154]
[1672613190238,0.69912484,16613.0,16612.0,0.13856196]
[1672613211994,0.99982484,16613.0,16612.0,0.13856196]
[1672613212203,0.69912484,16613.0,16612.0,0.13856196]
[1672613212419,0.99982484,16613.0,16612.0,0.13856196]
[1672613212937,0.69912484,16613.0,16612.0,0.13856196]
[1672613213146,0.99982484,16613.0,16612.0,0.13856196]
[1672613213363,0.69912484,16613.0,16612.0,0.13856196]
[1672613213779,0.99982484,16613.0,16612.0,0.13856196]
[1672613214198,0.69912484,16613.0,16612.0,0.13856196]
[1672613214407,0.99982484,16613.0,16612.0,0.13856196]
[1672613214618,0.69912484,16613.0,16612.0,0.13856196]
[1672613215143,0.99982484,16613.0,16612.0,0.13856196]
[1672613216090,0.99982484,16613.0,16612.0,0.43926196]
[1672613216091,0.69912484,16613.0,16612.0,0.43926196]
[1672613217568,0.69912484,16613.0,16612.0,0.13856196]
[1672613242579,0.69912484,16613.0,16612.0,0.13833447]
[1672613285047,0.69912484,16613.0,16612.0,0.33833447]
[1672613291025,0.69912484,16613.0,16612.0,0.63903447]
[1672613293983,0.69912484,16613.0,16612.0,0.33826525]
[1672613294201,0.69912484,16613.0,16612.0,0.43896525]
[1672613296931,0.69912484,16613.0,16612.0,0.13826525]
[1672613297143,0.69912484,16613.0,16612.0,0.43896525]
[1672613298197,0.69912484,16613.0,16612.0,0.13826525]
[1672613298501,0.69912484,16613.0,16612.0,0.43896525]
[1672613301344,0.69912484,16613.0,16612.0,0.13826525]
[1672613301547,0.69912484,16613.0,16612.0,0.43896525]
[1672613307343,0.69912484,16613.0,16612.0,0.13826525]
[1672613307662,0.69912484,16613.0,16612.0,0.43896525]
[1672613308072,0.69912484,16613.0,16612.0,0.13826525]
[1672613309962,0.69912484,16613.0,16612.0,0.33826525]
[1672613312592,0.69912484,16613.0,16612.0,0.63896525]
[1672613319744,0.69912484,16613.0,16612.0,0.43896525]
[1672613328579,0.69912484,16613.0,16612.0,0.13826525]
[1672613328789,0.69912484,16613.0,16612.0,0.43896525]
[1672613332999,0.69912484,16613.0,16612.0,0.13826525]
[1672613333308,0.69912484,16613.0,16612.0,0.43896525]
[1672613334982,0.69889314,16613.0,16612.0,0.43896525]
[1672613336353,0.69889314,16613.0,16612.0,0.13826525]
[1672613336671,0.69889314,16613.0,16612.0,0.43896525]
[1672613340781,0.69889314,16613.0,16612.0,0.13826525]
[1672613340992,0.69889314,16613.0,16612.0,0.43896525]
[1672613343093,0.69889314,16613.0,16612.0,0.13826525]
[1672613348555,0.69889314,16613.0,16612.0,0.43896525]
[1672613357171,0.3007,16615.0,16612.0,0.43896525]
[1672613357387,0.69889314,16613.0,16612.0,0.43896525]
[1672613374639,0.69889314,16613.0,16612.0,0.13826525]
[1672613374842,0.69889314,16613.0,16612.0,0.43896525]
[1672613378524,0.69889314,16613.0,16612.0,0.13826525]
[1672613378730,0.69889314,16613.0,16612.0,0.43896525]
[1672613382421,0.69889314,16613.0,16612.0,0.13826525]
[1672613382836,0.69889314,16613.0,16612.0,0.43896525]
[1672613384622,0.69889314,16613.0,16612.0,0.13826525]
[1672613384824,0.69889314,16613.0,16612.0,0.43896525]
[1672613389351,0.69889314,16613.0,16612.0,0.43877348]
[1672613391971,0.69889314,16613.0,16612.0,0.13807348]
[1672613392185,0.69889314,16613.0,16612.0,0.43877348]
[1672613393031,0.69889314,16613.0,16612.0,0.13807348]
[1672613393237,0.69889314,16613.0,16612.0,0.43877348]
[1672613394610,0.69889314,16613.0,16612.0,0.13807348]
[1672613394921,0.69889314,16613.0,16612.0,0.43877348]
[1672613399965,0.69889314,16613.0,16612.0,0.13807348]
[1672613400178,0.69889314,16613.0,16612.0,0.43877348]
[1672613400592,0.69889314,16613.0,16612.0,0.13807348]
[1672613400913,0.69889314,16613.0,16612.0,0.43877348]
[1672613403008,0.69889314,16613.0,16612.0,0.13807348]
[1672613403221,0.69889314,16613.0,16612.0,0.43877348]
[1672613404904,0.69889314,16613.0,16612.0,0.13807348]
[1672613405111,0.69889314,16613.0,16612.0,0.43877348]
[1672613408681,0.69889314,16613.0,16612.0,0.13807348]
[1672613409109,0.69889314,16613.0,16612.0,0.43877348]
[1672613409531,0.69889314,16613.0,16612.0,0.13807348]
[1672613409737,0.69889314,16613.0,16612.0,0.43877348]
[1672613414363,0.69889314,16613.0,16612.0,0.13807348]
[1672613414567,0.69889314,16613.0,16612.0,0.43877348]
[1672613414987,0.69889314,16613.0,16612.0,0.13807348]
[1672613415208,0.69889314,16613.0,16612.0,0.43877348]
[1672613415413,0.69889314,16613.0,16612.0,0.13807348]
[1672613415621,0.69889314,16613.0,16612.0,0.43877348]
[1672613416459,0.69889314,16613.0,16612.0,0.13807348]
[1672613416777,0.69889314,16613.0,16612.0,0.43877348]
[1672613417826,0.69889314,16613.0,16612.0,0.13807348]
[1672613418036,0.69889314,16613.0,16612.0,0.43877348]
[1672613429590,0.69889314,16613.0,16612.0,0.13807348]
[1672613429813,0.69889314,16613.0,16612.0,0.43877348]
[1672613430231,0.89889314,16614.0,16612.0,0.43877348]
[1672613431071,0.2,16614.0,16612.0,0.43877348]
[1672613431282,0.89889314,16614.0,16612.0,0.43877348]
[1672613431496,0.89889314,16614.0,16612.0,0.4397]
[1672613434647,0.89889314,16614.0,16613.0,0.3007]
[1672613435805,0.89889314,16614.0,16613.0,0.4397]
[1672613438852,0.89889314,16614.0,16613.0,0.139]
[1672613439161,0.89889314,16614.0,16613.0,0.4397]
[1672613441793,0.89889314,16614.0,16613.0,0.43948631]
[1672613442951,0.89889314,16614.0,16613.0,0.13878631]
[1672613443160,0.89889314,16614.0,16613.0,0.43948631]
[1672613443785,0.89874508,16614.0,16613.0,0.43948631]
[1672613450626,0.89874508,16614.0,16613.0,0.13878631]
[1672613450846,0.89874508,16614.0,16613.0,0.43948631]
[1672613455140,0.19985194,16614.0,16613.0,0.43948631]
[1672613455352,0.89874508,16614.0,16613.0,0.43948631]
[1672613455563,0.69889314,16614.0,16613.0,0.43948631]
[1672613459661,0.69889314,16614.0,16613.0,0.13878631]
[1672613459877,0.69889314,16614.0,16613.0,0.43948631]
[1672613460079,0.69889314,16614.0,16613.0,0.13878631]
[1672613460296,0.69889314,16614.0,16613.0,0.43948631]
[1672613461246,0.69889314,16614.0,16613.0,0.13878631]
[1672613461456,0.69889314,16614.0,16613.0,0.43948631]
[1672613467862,0.69889314,16614.0,16613.0,0.13878631]
[1672613468070,0.69889314,16614.0,16613.0,0.43948631]
[1672613468812,0.69889314,16614.0,16613.0,0.13878631]
[1672613469027,0.69889314,16614.0,16613.0,0.43948631]
[1672613476068,0.69889314,16614.0,16613.0,0.13878631]
[1672613476273,0.69889314,16614.0,16613.0,0.43948631]
[1672613478800,0.69889314,16614.0,16613.0,0.13878631]
[1672613479642,0.69889314,16614.0,16613.0,0.33878631]
[1672613483844,0.69889314,16614.0,16613.0,0.63948631]
[1672613486478,0.69889314,16614.0,16613.0,0.33878631]
[1672613486687,0.69889314,16614.0,16613.0,0.63948631]
[1672613487427,0.69889314,16614.0,16613.0,0.33878631]
[1672613487633,0.69889314,16614.0,16613.0,0.63948631]
[1672613492055,0.69889314,16614.0,16613.0,0.43948631]
[1672613495730,0.69889314,16614.0,16613.0,0.43928117]
[1672613503092,0.69889314,16616.0,16613.0,0.43928117]
[1672613503305,0.69889314,16616.0,16615.0,0.3007]
[1672613504461,0.69889314,16616.0,16615.0,0.4407]
[1672613509830,0.69889314,16616.0,16615.0,0.14]
[1672613510026,0.69889314,16616.0,16615.0,0.4407]
[1672613511607,0.69889314,16616.0,16615.0,0.14]
[1672613511826,0.69889314,16616.0,16615.0,0.4407]
[1672613515083,0.69889314,16616.0,16615.0,0.14]
[1672613525282,0.69889314,16616.0,16615.0,0.24]
[1672613528963,0.69889314,16616.0,16615.0,0.5407]
[1672613531059,0.69889314,16616.0,16615.0,0.4407]
[1672613531796,0.69889314,16616.0,16615.0,0.14]
[1672613532004,0.69889314,16616.0,16615.0,0.4407]
[1672613537275,0.69889314,16616.0,16615.0,0.14]
[1672613537472,0.69889314,16616.0,16615.0,0.4407]
[1672613539582,0.69889314,16616.0,16615.0,0.14]
[1672613540528,0.99959314,16616.0,16615.0,0.14]
[1672613544312,1.29959314,16616.0,16615.0,0.14]
[1672613545889,0.99889314,16616.0,16615.0,0.14]
[1672613546097,1.29959314,16616.0,16615.0,0.14]
[1672613546520,0.99889314,16616.0,16615.0,0.14]
[1672613546732,1.29959314,16616.0,16615.0,0.14]
[1672613549263,1.29959314,16616.0,16615.0,0.1398006]
[1672613554434,0.3007,16616.0,16615.0,0.1398006]
[1672613554639,0.69889314,16616.0,16615.0,0.1398006]
[1672613555271,1.79509314,16618.0,16615.0,0.3398006]
[1672613555593,1.79509314,16618.0,16616.0,0.3007]
[1672613555594,0.2,16617.0,16616.0,0.3007]
[1672613556648,0.2,16617.0,16616.0,0.4417]
[1672613564953,0.2,16617.0,16616.0,0.141]
[1672613566099,0.5007,16617.0,16616.0,0.141]
[1672613578903,0.2,16617.0,16616.0,0.141]
[1672613579120,0.5007,16617.0,16616.0,0.141]
[1672613587100,1.19959314,16617.0,16616.0,0.141]
[1672613592771,0.89889314,16617.0,16616.0,0.141]
[1672613597716,1.19959314,16617.0,16616.0,0.141]
[1672613598343,1.19959314,16617.0,16616.0,0.14082721]
[1672613598565,0.89889314,16617.0,16616.0,0.14082721]
[1672613598766,1.19959314,16617.0,16616.0,0.14082721]
[1672613599714,0.89889314,16617.0,16616.0,0.14082721]
[1672613599927,1.19959314,16617.0,16616.0,0.14082721]
[1672613602457,0.89889314,16617.0,16616.0,0.14082721]
[1672613602666,1.19959314,16617.0,16616.0,0.14082721]
[1672613604028,0.89889314,16617.0,16616.0,0.14082721]
[1672613604233,1.19959314,16617.0,16616.0,0.14082721]
[1672613608649,0.89889314,16617.0,16616.0,0.14082721]
[1672613608860,1.19959314,16617.0,16616.0,0.14082721]
[1672613609494,0.89889314,16617.0,16616.0,0.14082721]
[1672613609691,1.19959314,16617.0,16616.0,0.14082721]
[1672613613487,0.89889314,16617.0,16616.0,0.14082721]
[1672613613908,1.19959314,16617.0,16616.0,0.14082721]
[1672613614848,0.89889314,16617.0,16616.0,0.14082721]
[1672613615065,1.19959314,16617.0,16616.0,0.14082721]
[1672613623041,0.89889314,16617.0,16616.0,0.14082721]
[1672613623254,1.19959314,16617.0,16616.0,0.14082721]
[1672613628304,1.19959314,16617.0,16616.0,0.12674449]
[1672613629992,0.89889314,16617.0,16616.0,0.12674449]
[1672613630199,1.19959314,16617.0,16616.0,0.12674449]
[1672613632818,0.89889314,16617.0,16616.0,0.12674449]
[1672613633031,1.19959314,16617.0,16616.0,0.12674449]
[1672613634405,0.89889314,16617.0,16616.0,0.12674449]
[1672613634601,1.19959314,16617.0,16616.0,0.12674449]
[1672613635977,0.89889314,16617.0,16616.0,0.12674449]
[1672613636290,1.19959314,16617.0,16616.0,0.12674449]
[1672613641757,0.89889314,16617.0,16616.0,0.12674449]
[1672613642077,1.19959314,16617.0,16616.0,0.12674449]
[1672613648577,0.89889314,16617.0,16616.0,0.12674449]
[1672613648789,1.19959314,16617.0,16616.0,0.12674449]
[1672613652694,0.89889314,16617.0,16616.0,0.12674449]
[1672613653117,1.19959314,16617.0,16616.0,0.12674449]
[1672613653326,0.89889314,16617.0,16616.0,0.12674449]
[1672613653535,1.19959314,16617.0,16616.0,0.12674449]
[1672613653948,0.89889314,16617.0,16616.0,0.12674449]
[1672613654164,1.19959314,16617.0,16616.0,0.12674449]
[1672613656057,0.89889314,16617.0,16616.0,0.12674449]
[1672613656259,1.19959314,16617.0,16616.0,0.12674449]
[1672613657424,1.19945498,16617.0,16616.0,0.12674449]
[1672613663425,0.89875498,16617.0,16616.0,0.12674449]
[1672613663849,1.19945498,16617.0,16616.0,0.12674449]
[1672613668360,0.89875498,16617.0,16616.0,0.12674449]
[1672613668678,1.19945498,16617.0,16616.0,0.12674449]
[1672613673511,0.89875498,16617.0,16616.0,0.12674449]
[1672613673722,1.19945498,16617.0,16616.0,0.12674449]
[1672613674879,0.89875498,16617.0,16616.0,0.12674449]
[1672613675085,1.19945498,16617.0,16616.0,0.12674449]
[1672613678353,0.89875498,16617.0,16616.0,0.12674449]
[1672613678562,1.19945498,16617.0,16616.0,0.12674449]
[1672613681085,0.89875498,16617.0,16616.0,0.12674449]
[1672613681392,1.19945498,16617.0,16616.0,0.12674449]
[1672613688869,1.19945498,16617.0,16616.0,0.11407005]
[1672613690869,1.19945498,16617.0,16616.0,0.10266305]
[1672613693180,1.19945498,16617.0,16616.0,0.09239675]
[1672613704006,0.89875498,16617.0,16616.0,0.08315708]
[1672613704423,1.19945498,16617.0,16616.0,0.08315708]
[1672613706003,1.19945498,16617.0,16616.0,0.07484138]
[1672613707787,0.89875498,16617.0,16616.0,0.07484138]
[1672613707998,0.89875498,16617.0,16616.0,0.06735725]
[1672613708208,1.19945498,16617.0,16616.0,0.06735725]
[1672613710004,1.19945498,16617.0,16616.0,0.06062153]
[1672613713154,0.89875498,16617.0,16616.0,0.06062153]
[1672613713367,1.19945498,16617.0,16616.0,0.06062153]
[1672613716732,1.19945498,16617.0,16616.0,0.05455938]
[1672613717995,0.2,16616.0,16612.0,0.2]
[1672613718199,0.3007,16613.0,16611.0,0.6154317]
[1672613718409,0.3007,16613.0,16611.0,0.0002317]
[1672613718628,0.2,16612.0,16611.0,0.0002317]
[1672613720512,0.2,16612.0,16611.0,0.0152317]
[1672613721039,0.213,16612.0,16611.0,0.015]
[1672613722089,0.91189314,16612.0,16611.0,0.015]
[1672613724191,0.213,16612.0,16611.0,0.015]
[1672613729259,0.213,16612.0,16611.0,0.215]
[1672613735775,0.213,16612.0,16611.0,0.2152317]
[1672613741347,0.013,16612.0,16611.0,0.2152317]
[1672613743966,0.013,16612.0,16611.0,0.5159317]
[1672613749544,0.99959314,16616.0,16612.0,0.2]
[1672613749753,0.2,16615.0,16613.0,0.3007]
[1672613750189,0.69889314,16616.0,16613.0,0.3009317]
[1672613750587,0.69889314,16616.0,16614.0,0.2]
[1672613750798,1.49439314,16617.0,16614.0,0.2]
[1672613751015,0.012,16615.0,16614.0,0.2]
[1672613751223,0.2,16616.0,16614.0,0.2]
[1672613751541,0.012,16616.0,16614.0,0.2]
[1672613751749,0.1,16616.0,16614.0,0.2]
[1672613751965,0.0095,16616.0,16615.0,0.3007]
[1672613752384,0.69889314,16617.0,16616.0,0.2]
[1672613753841,0.71089314,16617.0,16616.0,0.238]
[1672613757829,0.71089314,16617.0,16616.0,0.5387]
[1672613762663,0.71089314,16617.0,16616.0,0.238]
[1672613762871,0.71089314,16617.0,16616.0,0.5387]
[1672613767808,0.71089314,16617.0,16616.0,0.238]
[1672613768127,0.71089314,16617.0,16616.0,0.5387]
[1672613768442,0.71089314,16617.0,16616.0,0.238]
[1672613768855,0.71089314,16617.0,16616.0,0.5387]
[1672613769280,0.71089314,16617.0,16616.0,0.238]
[1672613769492,0.71089314,16617.0,16616.0,0.5387]
[1672613769906,0.71089314,16617.0,16616.0,0.238]
[1672613770111,0.71089314,16617.0,16616.0,0.5387]
[1672613773054,0.71089314,16617.0,16616.0,0.238]
[1672613773899,0.71089314,16617.0,16616.0,0.5387]
[1672613776110,0.71089314,16617.0,16616.0,0.238]
[1672613776423,0.71089314,16617.0,16616.0,0.5387]
[1672613787144,0.71089314,16617.0,16616.0,0.238]
[1672613787353,0.71089314,16617.0,16616.0,0.5387]
[1672613789032,0.71089314,16617.0,16616.0,0.238]
[1672613789248,0.71089314,16617.0,16616.0,0.5387]
[1672613789763,0.71089314,16617.0,16616.0,0.238]
[1672613789972,0.71089314,16617.0,16616.0,0.5387]
[1672613791035,0.71089314,16617.0,16616.0,0.238]
[1672613791357,0.71089314,16617.0,16616.0,0.5387]
[1672613795452,0.71089314,16617.0,16616.0,0.238]
[1672613795661,0.71089314,16617.0,16616.0,0.5387]
[1672613797348,0.71089314,16617.0,16616.0,0.5385396]
[1672613807663,0.71089314,16617.0,16616.0,0.2378396]
[1672613807867,0.71089314,16617.0,16616.0,0.5385396]
[1672613808607,0.71089314,16617.0,16616.0,0.2378396]
[1672613808921,0.71089314,16617.0,16616.0,0.5385396]
[1672613814067,0.71089314,16617.0,16616.0,0.2378396]
[1672613814280,0.71089314,16617.0,16616.0,0.5385396]
[1672613818061,0.71089314,16617.0,16616.0,0.2378396]
[1672613818271,2.06629314,16617.0,16616.0,0.5385396]
[1672613821109,2.06629314,16617.0,16616.0,0.2378396]
[1672613821320,2.06629314,16617.0,16616.0,0.5385396]
[1672613822376,2.06629314,16617.0,16616.0,0.2378396]
[1672613822580,2.06629314,16617.0,16616.0,0.5385396]
[1672613835198,2.06629314,16617.0,16616.0,0.2378396]
[1672613835399,2.06629314,16617.0,16616.0,0.5385396]
[1672613840337,2.06614017,16617.0,16616.0,0.5385396]
[1672613840756,2.06614017,16617.0,16616.0,0.2378396]
[1672613841078,2.06614017,16617.0,16616.0,0.5385396]
[1672613843170,2.06614017,16617.0,16616.0,0.2378396]
[1672613843388,2.06614017,16617.0,16616.0,0.5385396]
[1672613845071,2.06614017,16617.0,16616.0,0.3387]
[1672613845701,2.06614017,16617.0,16616.0,0.038]
[1672613846013,2.06614017,16617.0,16616.0,0.3387]
[1672613846962,2.06614017,16617.0,16616.0,0.038]
[1672613847274,2.06614017,16617.0,16616.0,0.3387]
[1672613851588,2.06614017,16617.0,16616.0,0.038]
[1672613851799,2.06614017,16617.0,16616.0,0.3387]
[1672613852113,2.06614017,16617.0,16616.0,0.038]
[1672613852424,2.06614017,16617.0,16616.0,0.3387]
[1672613853792,2.97044017,16617.0,16616.0,0.3387]
[1672613853990,2.97044017,16617.0,16616.0,0.038]
[1672613854207,2.97044017,16617.0,16616.0,0.3387]
[1672613857679,2.97044017,16617.0,16616.0,0.038]
[1672613857992,2.97044017,16617.0,16616.0,0.3387]
[1672613858202,2.97044017,16617.0,16616.0,0.038]
[1672613858829,2.97044017,16617.0,16616.0,0.3387]
[1672613859782,2.97044017,16617.0,16616.0,0.038]
[1672613859984,2.97044017,16617.0,16616.0,0.3387]
[1672613860195,2.97044017,16617.0,16616.0,0.038]
[1672613860505,2.97044017,16617.0,16616.0,0.3387]
[1672613860722,2.97044017,16617.0,16616.0,0.038]
[1672613860930,2.97044017,16617.0,16616.0,0.3387]
[1672613861141,2.97044017,16617.0,16616.0,0.038]
[1672613861775,2.97044017,16617.0,16616.0,0.3387]
[1672613863044,2.97044017,16617.0,16616.0,0.038]
[1672613863240,2.97044017,16617.0,16616.0,0.3387]
[1672613868078,2.97044017,16617.0,16616.0,0.038]
[1672613868289,2.97044017,16617.0,16616.0,0.3387]
[1672613869130,2.97044017,16617.0,16616.0,0.038]
[1672613869451,2.97044017,16617.0,16616.0,0.3387]
[1672613876694,2.97044017,16617.0,16616.0,0.038]
[1672613876904,2.97044017,16617.0,16616.0,0.3387]
[1672613877852,2.97044017,16617.0,16616.0,0.038]
[1672613878064,2.97044017,16617.0,16616.0,0.3387]
[1672613883002,2.97044017,16617.0,16616.0,0.038]
[1672613883210,2.97044017,16617.0,16616.0,0.3387]
[1672613883846,2.97044017,16617.0,16616.0,0.038]
[1672613884268,2.97044017,16617.0,16616.0,0.3387]
[1672613888057,2.97044017,16617.0,16616.0,0.038]
[1672613888473,2.97044017,16617.0,16616.0,0.3387]
[1672613888791,2.97044017,16617.0,16616.0,0.33857096]
[1672613889535,2.97044017,16617.0,16616.0,0.03787096]
[1672613889749,2.97044017,16617.0,16616.0,0.33857096]
[1672613893835,2.97044017,16617.0,16616.0,0.03787096]
[1672613894155,2.97044017,16617.0,16616.0,0.33857096]
[1672613895202,2.97044017,16617.0,16616.0,0.03787096]
[1672613895521,2.97044017,16617.0,16616.0,0.33857096]
[1672613895733,2.97044017,16617.0,16616.0,0.03787096]
[1672613895946,2.97044017,16617.0,16616.0,0.33857096]
[1672613897843,2.97044017,16617.0,16616.0,0.03787096]
[1672613898156,2.97044017,16617.0,16616.0,0.33857096]
[1672613898684,2.97044017,16617.0,16616.0,0.03787096]
[1672613898991,2.97044017,16617.0,16616.0,0.33857096]
[1672613899417,2.97044017,16617.0,16616.0,0.03787096]
[1672613899627,2.97044017,16617.0,16616.0,0.33857096]
[1672613906142,2.97044017,16617.0,16616.0,0.03787096]
[1672613906354,2.97044017,16617.0,16616.0,0.33857096]
[1672613910138,2.97044017,16617.0,16616.0,0.03787096]
[1672613910347,2.97044017,16617.0,16616.0,0.33857096]
[1672613912029,2.97044017,16617.0,16616.0,0.03787096]
[1672613912240,2.97044017,16617.0,16616.0,0.33857096]
[1672613912452,2.97044017,16617.0,16616.0,0.03787096]
[1672613912664,2.97044017,16617.0,16616.0,0.33857096]
[1672613917485,2.97044017,16617.0,16616.0,0.03787096]
[1672613917912,2.97044017,16617.0,16616.0,0.33857096]
[1672613918329,2.97044017,16617.0,16616.0,0.03787096]
[1672613918545,2.97044017,16617.0,16616.0,0.33857096]
[1672613918751,2.97044017,16617.0,16616.0,0.03787096]
[1672613919170,2.97044017,16617.0,16616.0,0.33857096]
[1672613919386,2.97044017,16617.0,16616.0,0.03787096]
[1672613919595,2.97044017,16617.0,16616.0,0.33857096]
[1672613921282,2.97044017,16617.0,16616.0,0.03787096]
[1672613921492,2.97044017,16617.0,16616.0,0.33857096]
[1672613923491,2.97044017,16617.0,16616.0,0.03787096]
[1672613923704,2.97044017,16617.0,16616.0,0.33857096]